Workbook

Sheet CoderSetting (hidden)
B2: check wether Admin exist or not | C2: =IF(ISERROR(MATCH("Admin", Settings!H83:$H183, 0)), FALSE, TRUE) -> FALSE
B3: Check from where user has move on Help sheet | C3: Home

Sheet Home (hidden)
AA1: FALSE
D2: INVOICE MANAGER PRO™
D3: Support: | E3: support@spreadsheet123.com | O3: ="© "&YEAR(TODAY())&" Spreadsheet123 LTD. All rights reserved" -> © 2017 Spreadsheet123 LTD. All rights reserved
D4: =IF(ISERROR(INDEX(_paymentTermsSet,MATCH(_paymentDue,_paymentTerms,0),2)),"",INDEX(_paymentTermsSet,MATCH(_paymentDue,_paymentTerms,0),2)) -> 
D6: Welcome User | F6: Alex | H6: =IF(ISBLANK(Home!$F$6),"",INDEX(Sales_Rep,MATCH(Home!$F$6,Sales_Rep_Name,0),4)) ->  | M6: Role: | N6: Admin
D9: Customer is | F9: Person | I9: Billing Address | K9: =IF(OR(ISBLANK(Home!$F$11),ISERROR(INDEX(Customers,MATCH(Home!$F$11,IF(Home!$F$9="Company",Company,Person),0),IF(Home!$F$9="Company",3,2)))),"",INDEX(Customers,MATCH(Home!$F$11,IF(Home!$F$9="Company",Company,Person),0),IF(Home!$F$9="Company",3,2))) -> 
D11: Customer | K11: =IF(OR(ISBLANK(Home!$F$11),ISERROR(INDEX(Customers,MATCH(Home!$F$11,IF(Home!$F$9="Company",Company,Person),0),4))),"",INDEX(Customers,MATCH(Home!$F$11,IF(Home!$F$9="Company",Company,Person),0),4)) -> 
D13: Customer ID | F13: =IF(OR(ISBLANK(F9),ISBLANK(F11),ISERROR(INDEX(Customers,MATCH($F$11,IF(Home!$F$9="Company",Company,Customer_Name),0),1))),"",INDEX(Customers,MATCH($F$11,IF(Home!$F$9="Company",Company,Customer_Name),0),1)) ->  | K13: =IF(OR(ISBLANK(Home!$F$11),ISERROR(INDEX(Customers,MATCH(Home!$F$11,IF(Home!$F$9="Company",Company,Person),0),5)&", "&INDEX(Customers,MATCH(Home!$F$11,IF(Home!$F$9="Company",Company,Person),0),6)&", "&INDEX(Customers,MATCH(Home!$F$11,IF(Home!$F$9="Company",Company,Person),0),7))),"",INDEX(Customers,MATCH(Home!$F$11,IF(Home!$F$9="Company",Company,Person),0),5)&", "&INDEX(Customers,MATCH(Home!$F$11,IF(Home!$F$9="Company",Company,Person),0),6)&", "&INDEX(Customers,MATCH(Home!$F$11,IF(Home!$F$9="Company",Company,Person),0),7)) -> 
D15: Purchase Order # | G15: (Optional) | K15: =IF(OR(ISBLANK(Home!$F$11),ISERROR(INDEX(Customers,MATCH(Home!$F$11,IF(Home!$F$9="Company",Company,Person),0),8))),"","P: "&INDEX(Customers,MATCH(Home!$F$11,IF(Home!$F$9="Company",Company,Person),0),8)) -> 
D17: Invoice Date | F17: 2017-03-26 | K17: =IF(OR(ISBLANK(Home!$F$11),ISERROR(INDEX(Customers,MATCH(Home!$F$11,IF(Home!$F$9="Company",Company,Person),0),9))),"","F: "&INDEX(Customers,MATCH(Home!$F$11,IF(Home!$F$9="Company",Company,Person),0),9)) -> 
D19: Payment Terms | K19: =IF(OR(ISBLANK(Home!$F$11),ISERROR(INDEX(Customers,MATCH(Home!$F$11,IF(Home!$F$9="Company",Company,Person),0),10))),"","E: "&INDEX(Customers,MATCH(Home!$F$11,IF(Home!$F$9="Company",Company,Person),0),10)) -> 
D21: Due Date | F21: =IF(ISERROR(DATE(YEAR(_invoiceDate),MONTH(_invoiceDate),DAY(_invoiceDate)+_paymentTermsDay)),"",IF(_paymentTermsDay=0,_invoiceDate,DATE(YEAR(_invoiceDate),MONTH(_invoiceDate),DAY(_invoiceDate)+_paymentTermsDay))) ->  | I21: Shipping Address | K21: [Name]
D23: =Settings!B25 -> Sales Tax Rate | F23: 0.2 | K23: [Company Name]
D25: Invoice Number | F25: =_NextInvoice -> 1 | K25: [Street Address]
D27: Alt. Shipping Address | F27: NO | K27: [City, ST ZIP Code]
D29: Service & Handling | G29: (Optional) | K29: [Phone]
D31: Discount | F31: 0.1 | G31: (Optional) | K31: [Contact Name]
D33: Special Notes and Instructions

Sheet Sales (hidden)
A1: INVOICE MANAGER PRO™ | V1: =IF(NOT(W1=0),ROW(),0) -> 1 | W1: =Settings!C66 -> Draft
M2: ="© "&YEAR(TODAY())&" Spreadsheet123 LTD. All rights reserved" -> © 2017 Spreadsheet123 LTD. All rights reserved | V2: 2 | W2: =Settings!C67 -> In Progress
A3: SALES - OVERVIEW | V3: 3 | W3: =Settings!C68 -> With Balance
V4: 4 | W4: =Settings!C69 -> Paid
V5: 5 | W5: =Settings!C70 -> Closed
V6: 0 | W6: =Settings!C71 -> 0
V7: 0 | W7: =Settings!C72 -> 0
V8: 0 | W8: =Settings!C73 -> 0
V9: 0 | W9: =Settings!C74 -> 0
V10: 0 | W10: =Settings!C75 -> 0
A11: Refresh Data | B11: Invoice # | C11: Date | D11: Customer ID | E11: Customer Name | F11: Invoice Total | G11: Sales Tax | H11: Service & Handling | I11: Discount | J11: Amount Due | K11: Due Date | L11: Total Paid | M11: Outstanding Balance | N11: Overdue | O11: Invoice Status

Sheet Customers (hidden)
A1: INVOICE MANAGER PRO™
J2: ="© "&YEAR(TODAY())&" Spreadsheet123 LTD. All rights reserved" -> © 2017 Spreadsheet123 LTD. All rights reserved
A6: CUSTOMER DATABASE
A7: ID | B7: Name | C7: Company Name | D7: Address Line 1 | E7: Address Line 2 | F7: State | G7: ZIP/Post Code | H7: Phone | I7: Fax | J7: E-mail | K7: Payment Terms | L7: Date

Sheet Sales Report (hidden)
A1: Sales Report
G8: Year To Date
B9: Net Sales | C9: Sales Tax | D9: Total | E9: Number of Sales | F9: Average Net Sale | G9: Net Sales | H9: Number of Sales | I9: Average Net Sales | J9: Revenue Share
A10: January | B10: =SUMIF(Sales_Date,"<=31/01",Subtotal) -> 0 | C10: =SUMIF(Sales_Date,"<=31/01",Sales_Tax) -> 0 | D10: =SUMIF(Sales_Date,"<=31/01",Sales_Total) -> 0 | E10: =SUMIF(Sales_Date,"<=31/01",Sales_Quantity) ->  | F10: =IF(B10=0,0,B10/E10) -> 0 | G10: =B10 -> 0 | H10: =E10 ->  | I10: =IF(G10=0,0,G10/H10) -> 0 | J10: =IF(B10=0,0,B10/SUM($B$10:$B$21)) -> 0
A11: February | B11: =SUMIF(Sales_Date,"<=28/02",Subtotal)-B10 -> 0 | C11: =SUMIF(Sales_Date,"<=28/02",Sales_Tax)-C10 -> 0 | D11: =SUMIF(Sales_Date,"<=28/02",Sales_Total)-D10 -> 0 | E11: =SUMIF(Sales_Date,"<=28/02",Sales_Quantity)-E10 ->  | F11: =IF(B11=0,0,B11/E11) -> 0 | G11: =G10+B11 -> 0 | H11: =H10+E11 ->  | I11: =IF(G11=0,0,G11/H11) -> 0 | J11: =IF(B11=0,0,B11/SUM($B$10:$B$21)) -> 0
A12: March | B12: =SUMIF(Sales_Date,"<=31/03",Subtotal)-B10-B11 -> 0 | C12: =SUMIF(Sales_Date,"<=31/03",Sales_Tax)-C10-C11 -> 0 | D12: =SUMIF(Sales_Date,"<=31/03",Sales_Total)-D10-D11 -> 0 | E12: =SUMIF(Sales_Date,"<=31/03",Sales_Quantity)-E10-E11 ->  | F12: =IF(B12=0,0,B12/E12) -> 0 | G12: 0 | I12: 0 | J12: 0
A13: April | B13: =SUMIF(Sales_Date,"<=30/04",Subtotal)-B10-B11-B12 -> 0 | C13: =SUMIF(Sales_Date,"<=30/04",Sales_Tax)-C10-C11-C12 -> 0 | D13: =SUMIF(Sales_Date,"<=30/04",Sales_Total)-D10-D11-D12 -> 0 | E13: =SUMIF(Sales_Date,"<=30/04",Sales_Quantity)-E10-E11-E12 ->  | F13: =IF(B13=0,0,B13/E13) -> 0 | G13: 0 | I13: 0 | J13: 0
A14: May | B14: =SUMIF(Sales_Date,"<=31/05",Subtotal)-B10-B11-B12-B13 -> 0 | C14: =SUMIF(Sales_Date,"<=31/05",Sales_Tax)-C10-C11-C12-C13 -> 0 | D14: =SUMIF(Sales_Date,"<=31/05",Sales_Total)-D10-D11-D12-D13 -> 0 | E14: =SUMIF(Sales_Date,"<=31/05",Sales_Quantity)-E10-E11-E12-E13 ->  | F14: =IF(B14=0,0,B14/E14) -> 0 | G14: 0 | I14: 0 | J14: 0
A15: June | B15: =SUMIF(Sales_Date,"<=30/06",Subtotal)-B10-B11-B12-B13-B14 -> 0 | C15: =SUMIF(Sales_Date,"<=30/06",Sales_Tax)-C10-C11-C12-C13-C14 -> 0 | D15: =SUMIF(Sales_Date,"<=30/06",Sales_Total)-D10-D11-D12-D13-D14 -> 0 | E15: =SUMIF(Sales_Date,"<=30/06",Sales_Quantity)-E10-E11-E12-E13-E14 ->  | F15: 0 | G15: 0 | I15: 0 | J15: 0
A16: July | B16: =SUMIF(Sales_Date,"<=31/07",Subtotal)-B10-B11-B12-B13-B14-B15 -> 0 | C16: =SUMIF(Sales_Date,"<=31/07",Sales_Tax)-C10-C11-C12-C13-C14-C15 -> 0 | D16: =SUMIF(Sales_Date,"<=31/07",Sales_Total)-D10-D11-D12-D13-D14-D15 -> 0 | E16: =SUMIF(Sales_Date,"<=31/07",Sales_Quantity)-E10-E11-E12-E13-E14-E15 ->  | F16: 0 | G16: 0 | I16: 0 | J16: 0
A17: August | B17: =SUMIF(Sales_Date,"<=31/08",Subtotal)-B10-B11-B12-B13-B14-B15-B16 -> 0 | C17: =SUMIF(Sales_Date,"<=31/08",Sales_Tax)-C10-C11-C12-C13-C14-C15-C16 -> 0 | D17: =SUMIF(Sales_Date,"<=31/08",Sales_Total)-D10-D11-D12-D13-D14-D15-D16 -> 0 | E17: =SUMIF(Sales_Date,"<=31/08",Sales_Quantity)-E10-E11-E12-E13-E14-E15-E16 ->  | F17: 0 | G17: 0 | I17: 0 | J17: 0
A18: September | B18: =SUMIF(Sales_Date,"<=30/09",Subtotal)-B10-B11-B12-B13-B14-B15-B16-B17 -> 0 | C18: =SUMIF(Sales_Date,"<=30/09",Sales_Tax)-C10-C11-C12-C13-C14-C15-C16-C17 -> 0 | D18: =SUMIF(Sales_Date,"<=30/09",Sales_Total)-D10-D11-D12-D13-D14-D15-D16-D17 -> 0 | E18: =SUMIF(Sales_Date,"<=30/09",Sales_Quantity)-E10-E11-E12-E13-E14-E15-E16-E17 ->  | F18: 0 | G18: 0 | I18: 0 | J18: 0
A19: October | B19: =SUMIF(Sales_Date,"<=31/10",Subtotal)-B10-B11-B12-B13-B14-B15-B16-B17-B18 -> 0 | C19: =SUMIF(Sales_Date,"<=31/10",Sales_Tax)-C10-C11-C12-C13-C14-C15-C16-C17-C18 -> 0 | D19: =SUMIF(Sales_Date,"<=31/10",Sales_Total)-D10-D11-D12-D13-D14-D15-D16-D17-D18 -> 0 | E19: =SUMIF(Sales_Date,"<=31/10",Sales_Quantity)-E10-E11-E12-E13-E14-E15-E16-E17-E18 ->  | F19: 0 | G19: 0 | I19: 0 | J19: 0
A20: November | B20: =SUMIF(Sales_Date,"<=30/11",Subtotal)-B10-B11-B12-B13-B14-B15-B16-B17-B18-B19 -> 0 | C20: =SUMIF(Sales_Date,"<=30/11",Sales_Tax)-C10-C11-C12-C13-C14-C15-C16-C17-C18-C19 -> 0 | D20: =SUMIF(Sales_Date,"<=30/11",Sales_Total)-D10-D11-D12-D13-D14-D15-D16-D17-D18-D19 -> 0 | E20: =SUMIF(Sales_Date,"<=30/11",Sales_Quantity)-E10-E11-E12-E13-E14-E15-E16-E17-E18-E19 ->  | F20: 0 | G20: 0 | I20: 0 | J20: 0
A21: December | B21: =SUMIF(Sales_Date,"<=31/12",Subtotal)-B10-B11-B12-B13-B14-B15-B16-B17-B18-B19-B20 -> 0 | C21: =SUMIF(Sales_Date,"<=31/12",Sales_Tax)-C10-C11-C12-C13-C14-C15-C16-C17-C18-C19-C20 -> 0 | D21: =SUMIF(Sales_Date,"<=31/12",Sales_Total)-D10-D11-D12-D13-D14-D15-D16-D17-D18-D19-D20 -> 0 | E21: =SUMIF(Sales_Date,"<=31/12",Sales_Quantity)-E10-E11-E12-E13-E14-E15-E16-E17-E18-E19-E20 ->  | F21: 0 | G21: 0 | I21: 0 | J21: 0
A40: Accounts Recivable
A42: January | B42: =SUMIF(Sales_Date,"<=31/01",Sales!L12:L250) -> 0 | C42: =SUMIF(Sales_Date,"<=31/01",Sales!$M$12:$M$250) -> 0
A43: February | B43: =SUMIF(Sales_Date,"<=28/02",Sales!$L$12:$L$250)-SUM($B$42:B42) -> 0 | C43: =SUMIF(Sales_Date,"<=28/02",Sales!$M$12:$M$250)-SUM($C$42:C42) -> 0
A44: March | B44: =SUMIF(Sales_Date,"<=31/03",Sales!$L$12:$L$250)-SUM($B$42:B43) -> 0 | C44: =SUMIF(Sales_Date,"<=31/03",Sales!$M$12:$M$250)-SUM($C$42:C43) -> 0
A45: April | B45: =SUMIF(Sales_Date,"<=30/04",Sales!$L$12:$L$250)-SUM($B$42:B44) -> 0 | C45: =SUMIF(Sales_Date,"<=30/04",Sales!$M$12:$M$250)-SUM($C$42:C44) -> 0
A46: May | B46: =SUMIF(Sales_Date,"<=31/05",Sales!$L$12:$L$250)-SUM($B$42:B45) -> 0 | C46: =SUMIF(Sales_Date,"<=31/05",Sales!$M$12:$M$250)-SUM($C$42:C45) -> 0
A47: June | B47: =SUMIF(Sales_Date,"<=30/06",Sales!$L$12:$L$250)-SUM($B$42:B46) -> 0 | C47: =SUMIF(Sales_Date,"<=30/06",Sales!$M$12:$M$250)-SUM($C$42:C46) -> 0
A48: July | B48: =SUMIF(Sales_Date,"<=31/07",Sales!$L$12:$L$250)-SUM($B$42:B47) -> 0 | C48: =SUMIF(Sales_Date,"<=31/07",Sales!$M$12:$M$250)-SUM($C$42:C47) -> 0
A49: August | B49: =SUMIF(Sales_Date,"<=31/08",Sales!$L$12:$L$250)-SUM($B$42:B48) -> 0 | C49: =SUMIF(Sales_Date,"<=31/08",Sales!$M$12:$M$250)-SUM($C$42:C48) -> 0
A50: September | B50: =SUMIF(Sales_Date,"<=30/09",Sales!$L$12:$L$250)-SUM($B$42:B49) -> 0 | C50: =SUMIF(Sales_Date,"<=30/09",Sales!$M$12:$M$250)-SUM($C$42:C49) -> 0
A51: October | B51: =SUMIF(Sales_Date,"<=31/10",Sales!$L$12:$L$250)-SUM($B$42:B50) -> 0 | C51: =SUMIF(Sales_Date,"<=31/10",Sales!$M$12:$M$250)-SUM($C$42:C50) -> 0
A52: November | B52: =SUMIF(Sales_Date,"<=30/11",Sales!$L$12:$L$250)-SUM($B$42:B51) -> 0 | C52: =SUMIF(Sales_Date,"<=30/11",Sales!$M$12:$M$250)-SUM($C$42:C51) -> 0
A53: December | B53: =SUMIF(Sales_Date,"<=31/12",Sales!$L$12:$L$250)-SUM($B$42:B52) -> 0 | C53: =SUMIF(Sales_Date,"<=31/12",Sales!$M$12:$M$250)-SUM($C$42:C52) -> 0

Sheet Login

Sheet template - Basic Invoice (hidden)
A1: =_companyName -> Company Name | K1: INVOICE
A2: =_companySlogan -> Company Slogan
H4: Date: | J4: =_invoiceDate -> 2017-03-26
H5: Invoice #: | J5: =_newInvoice -> 1
H6: Customer ID: | J6: =rngCustID -> 
H7: Purchase Order # | J7: =_purchaseOrder -> 
H8: Payment Due by: | J8: =_invoiceDueDate -> 
A10: Bill To: | H10: Ship To:
A11: =rngCustName ->  | H11: =rngShippingAddress -> [Name]
A12: =address_line1 ->  | H12: =altComName -> [Company Name]
A13: =address_line2 ->  | H13: =altAddress_line1 -> [Street Address]
A14: =phone ->  | H14: =altAddress_line2 -> [City, ST ZIP Code]
A15: =fax ->  | H15: =altPhone -> [Phone]
A16: =email ->  | H16: =altContactName -> [Contact Name]
A18: Description | J18: Line Total
A19: Printing and Binding (160*$1.75/each) | J19: =160*1.75 -> 280
A20: A4 Printing Paper (10*$15.20/5*500 Sheets) | J20: =10*15.2 -> 152
A36: Special Notes and Instructions | I36: Subtotal | J36: =IF(ISBLANK($K36),"",Settings!$C$26) -> $ | K36: =SUM($J$19:$J$34) -> 432
A37: =IF(ISBLANK(Home!$F$33),"",Home!$F$33) ->  | I37: ="Discount "&TEXT(_dicount,"0%") -> Discount 10% | J37: =IF(ISBLANK($K37),"",Settings!$C$26) -> $ | K37: =Home!F31*K36 -> 43.2
I38: =Settings!$C$24&" Rate" -> Sales Tax Rate | J38: % | K38: =_taxRate*100 -> 20
I39: =Settings!$C$24 -> Sales Tax | J39: =IF(ISBLANK($K39),"",Settings!$C$26) -> $ | K39: =IF(K36>0,(K36-rngDiscount)*(K38/100),0) -> 77.76
I40: S&H | J40: =IF(ISBLANK($K40),"",Settings!$C$26) -> $ | K40: =_service_handl -> 0
I41: Total | J41: =IF(ISBLANK($K41),"",Settings!$C$26) -> $ | K41: =SUM($K$36-$K$37,$K$39,$K$40) -> 466.56
A43: ="Make all checks payable to "&Settings!C5 -> Make all checks payable to Company Name | G43: =IF(Company_Reg="Yes",Settings!$B$39&": "&Settings!$C$39,"") -> Bank Name: Your Bank Name
A44: Thank you for your business! | G44: =IF(Company_Reg="Yes",Settings!$B$40&Settings!$C$40,"") -> Account #00000000
G45: =IF(Company_Reg="Yes",Settings!$B$41&Settings!$C$41,"") -> Routing/Sort Code #12-34-56
A47: =IF(ISBLANK(Home!$F$6),"","Should you have any enquiries concerning this invoice, please contact "&Home!$F$6&" on "&Settings!$C$17&IF(ISBLANK(INDEX(Sales_Rep,MATCH(Home!$F$6,Sales_Rep_Name,0),6)),"",", ext."&INDEX(Sales_Rep,MATCH(Home!$F$6,Sales_Rep_Name,0),6))) -> 
A49: =Settings!C10&", "&IF(ISBLANK(Settings!C11),"",Settings!C11&", ")&Settings!C12&", "&Settings!C14&", "&Settings!C15&", "&Settings!C13&IF(Company_Reg="Yes",", "&Settings!B34&Settings!$C$34&", "&Settings!B35&Settings!C35,"") -> 111, Street, Town/City, ST, 00000, Country, Company Reg. #123456, Sales Tax ID123456
A50: ="Phone: "&Settings!$C$17&", Fax: "&Settings!$C$18&", E-Mail: "&Settings!$C$19&", Web: "&Settings!$C$20 -> Phone: 0-000-000-0000, Fax: 0-000-000-0000, E-Mail: info@yourcompanysite.com, Web: www.yourcompanysite.com

Sheet template - Sales Invoice (hidden)
A1: =_companyName -> Company Name | L1: INVOICE
A2: =_companySlogan -> Company Slogan
I4: Date: | K4: =_invoiceDate -> 2017-03-26
I5: Invoice #: | K5: =_newInvoice -> 1
I6: Customer ID: | K6: =rngCustID -> 
I7: Purchase Order # | K7: =_purchaseOrder -> 
I8: Payment Due by: | K8: =_invoiceDueDate -> 
A10: Bill To: | I10: Ship To:
A11: =rngCustName ->  | I11: =IF(ISBLANK(Home!$K$21),"",Home!$K$21) -> [Name]
A12: =address_line1 ->  | I12: =altComName -> [Company Name]
A13: =address_line2 ->  | I13: =altAddress_line1 -> [Street Address]
A14: =phone ->  | I14: =altAddress_line2 -> [City, ST ZIP Code]
A15: =fax ->  | I15: =altPhone -> [Phone]
A16: =email ->  | I16: =altContactName -> [Contact Name]
A18: Shipping Method | D18: Shipping Terms | G18: Payment Terms | K18: Delivery Date
G19: =_paymentDue -> 0
A21: Item # | B21: Description | I21: Qty | J21: Unit Price | K21: Line Total
A22: 112233 | B22: Product 6 | I22: 5 | J22: 15 | K22: =IF(OR(ISBLANK($I22),$I22=0),0,$I22*$J22) -> 75
A23: 445566 | B23: Product 2 | I23: 3 | J23: 21 | K23: =IF(OR(ISBLANK($I23),$I23=0),0,$I23*$J23) -> 63
K24: 0
K25: 0
K26: 0
K27: 0
K28: 0
K29: 0
K30: 0
K31: 0
K32: 0
K33: 0
K34: 0
K35: 0
K36: 0
K37: 0
A39: Special Notes and Instructions | J39: Subtotal | K39: =IF(ISBLANK($J39),"",Settings!$C$26) -> $ | L39: =SUM($K$22:$K$37) -> 138
A40: =IF(ISBLANK(Home!$F$33),"",Home!$F$33) ->  | J40: ="Discount "&TEXT(_dicount,"0%") -> Discount 10% | K40: =IF(ISBLANK($J40),"",Settings!$C$26) -> $ | L40: =Home!F31*L39 -> 13.8
J41: =Settings!$C$24&" Rate" -> Sales Tax Rate | K41: % | L41: =_taxRate*100 -> 20
J42: =Settings!$C$24 -> Sales Tax | K42: =IF(ISBLANK($J42),"",Settings!$C$26) -> $ | L42: =IF(L39>0,(L39-rngDiscount)*(L41/100),0) -> 24.84
J43: S&H | K43: =IF(ISBLANK($J43),"",Settings!$C$26) -> $ | L43: =_service_handl -> 0
J44: Total | K44: =IF(ISBLANK($J44),"",Settings!$C$26) -> $ | L44: =SUM($L$39-$L$40,$L$42,$L$43) -> 149.04
A46: ="Make all checks payable to "&Settings!C5 -> Make all checks payable to Company Name | H46: =IF(Company_Reg="Yes",Settings!$B$39&": "&Settings!$C$39,"") -> Bank Name: Your Bank Name
A47: Thank you for your business! | H47: =IF(Company_Reg="Yes",Settings!$B$40&Settings!$C$40,"") -> Account #00000000
H48: =IF(Company_Reg="Yes",Settings!$B$41&Settings!$C$41,"") -> Routing/Sort Code #12-34-56
A50: =IF(ISBLANK(Home!$F$6),"","Should you have any enquiries concerning this invoice, please contact "&Home!$F$6&" on "&Settings!$C$17&IF(ISBLANK(INDEX(Sales_Rep,MATCH(Home!$F$6,Sales_Rep_Name,0),6)),"",", ext."&INDEX(Sales_Rep,MATCH(Home!$F$6,Sales_Rep_Name,0),6))) -> 
A51: =Settings!C10&", "&IF(ISBLANK(Settings!C11),"",Settings!C11&", ")&Settings!C12&", "&Settings!C14&", "&Settings!C15&", "&Settings!C13&IF(Company_Reg="Yes",", "&Settings!B34&Settings!$C$34&", "&Settings!B35&Settings!C35,"") -> 111, Street, Town/City, ST, 00000, Country, Company Reg. #123456, Sales Tax ID123456
A52: ="Phone: "&Settings!$C$17&", Fax: "&Settings!$C$18&", E-Mail: "&Settings!$C$19&", Web: "&Settings!$C$20 -> Phone: 0-000-000-0000, Fax: 0-000-000-0000, E-Mail: info@yourcompanysite.com, Web: www.yourcompanysite.com

Sheet template - Price List Invoice (hidden)
A1: =_companyName -> Company Name | L1: INVOICE
A2: =_companySlogan -> Company Slogan
I4: Date: | K4: =_invoiceDate -> 2017-03-26
I5: Invoice #: | K5: =_newInvoice -> 1
I6: Customer ID: | K6: =rngCustID -> 
I7: Purchase Order # | K7: =_purchaseOrder -> 
I8: Payment Due by: | K8: =_invoiceDueDate -> 
A10: Bill To: | I10: Ship To:
A11: =rngCustName ->  | I11: =IF(ISBLANK(Home!$K$21),"",Home!$K$21) -> [Name]
A12: =address_line1 ->  | I12: =altComName -> [Company Name]
A13: =address_line2 ->  | I13: =altAddress_line1 -> [Street Address]
A14: =phone ->  | I14: =altAddress_line2 -> [City, ST ZIP Code]
A15: =fax ->  | I15: =altPhone -> [Phone]
A16: =email ->  | I16: =altContactName -> [Contact Name]
A18: Shipping Method | D18: Shipping Terms | G18: Payment Terms | K18: Delivery Date
G19: =_paymentDue -> 0
A21: Item # | B21: Description | I21: Qty | J21: Unit Price | K21: Line Total
A22: =IF(ISBLANK($B22),"",INDEX(code,MATCH($B22,product,0))) -> 11Z2233 | B22: Product 2 | I22: 5 | J22: =IF(ISBLANK(B22),"",INDEX(unit_price,MATCH(B22,product,0))) -> 7 | K22: =IF(OR(ISBLANK(B22),ISBLANK($I22),$I22=0),0,$I22*$J22) -> 35
K23: 0
K24: 0
K25: 0
K26: 0
K27: 0
K28: 0
K29: 0
K30: 0
K31: 0
K32: 0
K33: 0
K34: 0
K35: 0
K36: 0
K37: 0
A39: Special Notes and Instructions | J39: Subtotal | K39: =IF(ISBLANK($J39),"",Settings!$C$26) -> $ | L39: =SUM($K$22:$K$37) -> 35
J40: ="Discount "&TEXT(_dicount,"0%") -> Discount 10% | K40: =IF(ISBLANK($J40),"",Settings!$C$26) -> $ | L40: =Home!F31*L39 -> 3.5
J41: =Settings!$C$24&" Rate" -> Sales Tax Rate | K41: % | L41: =_taxRate*100 -> 20
J42: =Settings!$C$24 -> Sales Tax | K42: =IF(ISBLANK($J42),"",Settings!$C$26) -> $ | L42: =IF(L39>0,(L39-rngDiscount)*(L41/100),0) -> 6.3
J43: S&H | K43: =IF(ISBLANK($J43),"",Settings!$C$26) -> $ | L43: =_service_handl -> 0
J44: Total | K44: =IF(ISBLANK($J44),"",Settings!$C$26) -> $ | L44: =SUM($L$39-$L$40,$L$42,$L$43) -> 37.8
A46: ="Make all checks payable to "&Settings!C5 -> Make all checks payable to Company Name | H46: =IF(Company_Reg="Yes",Settings!$B$39&": "&Settings!$C$39,"") -> Bank Name: Your Bank Name
A47: Thank you for your business! | H47: =IF(Company_Reg="Yes",Settings!$B$40&Settings!$C$40,"") -> Account #00000000
H48: =IF(Company_Reg="Yes",Settings!$B$41&Settings!$C$41,"") -> Routing/Sort Code #12-34-56
A50: =IF(ISBLANK(Home!$F$6),"","Should you have any enquiries concerning this invoice, please contact "&Home!$F$6&" on "&Settings!$C$17&IF(ISBLANK(INDEX(Sales_Rep,MATCH(Home!$F$6,Sales_Rep_Name,0),6)),"",", ext."&INDEX(Sales_Rep,MATCH(Home!$F$6,Sales_Rep_Name,0),6))) -> 
A51: =Settings!C10&", "&IF(ISBLANK(Settings!C11),"",Settings!C11&", ")&Settings!C12&", "&Settings!C14&", "&Settings!C15&", "&Settings!C13&IF(Company_Reg="Yes",", "&Settings!B34&Settings!$C$34&", "&Settings!B35&Settings!C35,"") -> 111, Street, Town/City, ST, 00000, Country, Company Reg. #123456, Sales Tax ID123456
A52: ="Phone: "&Settings!$C$17&", Fax: "&Settings!$C$18&", E-Mail: "&Settings!$C$19&", Web: "&Settings!$C$20 -> Phone: 0-000-000-0000, Fax: 0-000-000-0000, E-Mail: info@yourcompanysite.com, Web: www.yourcompanysite.com

Sheet template - Remittance Invoice (hidden)
A1: =_companyName -> Company Name | L1: INVOICE
A2: =_companySlogan -> Company Slogan
I4: Date: | K4: =_invoiceDate -> 2017-03-26
I5: Invoice #: | K5: =_newInvoice -> 1
I6: Customer ID: | K6: =rngCustID -> 
I7: Purchase Order # | K7: =_purchaseOrder -> 
I8: Payment Due by: | K8: =_invoiceDueDate -> 
A10: Bill To: | I10: Ship To:
A11: =rngCustName ->  | I11: =IF(ISBLANK(Home!$K$21),"",Home!$K$21) -> [Name]
A12: =address_line1 ->  | I12: =altComName -> [Company Name]
A13: =address_line2 ->  | I13: =altAddress_line1 -> [Street Address]
A14: =phone ->  | I14: =altAddress_line2 -> [City, ST ZIP Code]
A15: =fax ->  | I15: =altPhone -> [Phone]
A16: =email ->  | I16: =altContactName -> [Contact Name]
A18: Shipping Method | D18: Shipping Terms | G18: Payment Terms | K18: Delivery Date
G19: =_paymentDue -> 0
A21: Item # | B21: Description | I21: Qty | J21: Unit Price | K21: Line Total
A22: =IF(ISBLANK($B22),"",INDEX(code,MATCH($B22,product,0))) -> 555555 | B22: Product 18 | I22: 2 | J22: =IF(ISBLANK(B22),"",INDEX(unit_price,MATCH(B22,product,0))) -> 35 | K22: =IF(OR(ISBLANK(B22),ISBLANK(I22),I22=0),0,I22*J22) -> 70
K23: 0
K24: 0
K25: 0
K26: 0
K27: 0
K28: 0
K29: 0
K30: 0
K31: 0
K32: 0
K33: 0
A35: Special Notes and Instructions | J35: Subtotal | K35: =IF(ISBLANK($J35),"",Settings!$C$26) -> $ | L35: =SUM($K$22:$K$33) -> 70
A36: =IF(ISBLANK(Home!$F$33),"",Home!$F$33) ->  | J36: ="Discount "&TEXT(_dicount,"0%") -> Discount 10% | K36: =IF(ISBLANK($J36),"",Settings!$C$26) -> $ | L36: =Home!F31*L35 -> 7
J37: =Settings!$C$24&" Rate" -> Sales Tax Rate | K37: % | L37: =_taxRate*100 -> 20
J38: =Settings!$C$24 -> Sales Tax | K38: =IF(ISBLANK($J38),"",Settings!$C$26) -> $ | L38: =IF(L35>0,(L35-rngDiscount)*(L37/100),0) -> 12.6
J39: S&H | K39: =IF(ISBLANK($J39),"",Settings!$C$26) -> $ | L39: =_service_handl -> 0
J40: Total | K40: =IF(ISBLANK($J40),"",Settings!$C$26) -> $ | L40: =SUM($L$35-$L$36,$L$38,$L$39) -> 75.6
A42: ="Make all checks payable to "&Settings!C5 -> Make all checks payable to Company Name | H42: =IF(Company_Reg="Yes",Settings!$B$39&": "&Settings!$C$39,"") -> Bank Name: Your Bank Name
A43: Thank you for your business! | H43: =IF(Company_Reg="Yes",Settings!$B$40&Settings!$C$40,"") -> Account #00000000
H44: =IF(Company_Reg="Yes",Settings!$B$41&Settings!$C$41,"") -> Routing/Sort Code #12-34-56
A46: =IF(ISBLANK(Home!$F$6),"","Should you have any enquiries concerning this invoice, please contact "&Home!$F$6&" on "&Settings!$C$17&IF(ISBLANK(INDEX(Sales_Rep,MATCH(Home!$F$6,Sales_Rep_Name,0),6)),"",", ext."&INDEX(Sales_Rep,MATCH(Home!$F$6,Sales_Rep_Name,0),6))) -> 
A48: =Settings!C10&", "&IF(ISBLANK(Settings!C11),"",Settings!C11&", ")&Settings!C12&", "&Settings!C14&", "&Settings!C15&", "&Settings!C13&IF(Company_Reg="Yes",", "&Settings!B34&Settings!$C$34&", "&Settings!B35&Settings!C35,"") -> 111, Street, Town/City, ST, 00000, Country, Company Reg. #123456, Sales Tax ID123456
A49: ="Phone: "&Settings!$C$17&", Fax: "&Settings!$C$18&", E-Mail: "&Settings!$C$19&", Web: "&Settings!$C$20 -> Phone: 0-000-000-0000, Fax: 0-000-000-0000, E-Mail: info@yourcompanysite.com, Web: www.yourcompanysite.com
A51: Please return this slip along with your payment
A53: =IF(Settings!$F$5="Enable",Settings!$C$5,"") -> Company Name | L53: Remittance Slip
A54: =IF(Settings!$F$6="Enable",Settings!$C$6,"") -> Company Slogan
A56: Check No. | J56: Date
A58: =I6 -> Customer ID: | C58: =K6 ->  | J58: Amount Enclosed: | K58: =IF(ISBLANK($J58),"",Settings!$C$26) -> $
A60: =I5 -> Invoice #: | C60: =K5 -> 1 | J60: Balance to Pay: | K60: =IF(ISBLANK($J60),"",Settings!$C$26) -> $
A62: =Settings!C10&", "&IF(ISBLANK(Settings!C11),"",Settings!C11&", ")&Settings!C12&", "&Settings!C14&", "&Settings!C15&", "&Settings!C13&IF(Company_Reg="Yes",", "&Settings!B34&Settings!$C$34&", "&Settings!B35&Settings!C35,"") -> 111, Street, Town/City, ST, 00000, Country, Company Reg. #123456, Sales Tax ID123456
A63: ="Phone: "&Settings!$C$17&", Fax: "&Settings!$C$18&", E-Mail: "&Settings!$C$19&", Web: "&Settings!$C$20 -> Phone: 0-000-000-0000, Fax: 0-000-000-0000, E-Mail: info@yourcompanysite.com, Web: www.yourcompanysite.com

Sheet template - Parts and Labor (hidden)
A1: =_companyName -> Company Name | L1: INVOICE
A2: =_companySlogan -> Company Slogan
I4: Date: | K4: =_invoiceDate -> 2017-03-26
I5: Invoice #: | K5: =_newInvoice -> 1
I6: Customer ID: | K6: =rngCustID -> 
I7: Purchase Order # | K7: =_purchaseOrder -> 
I8: Payment Due by: | K8: =_invoiceDueDate -> 
A10: Bill To: | I10: Ship To:
A11: =rngCustName ->  | I11: =IF(ISBLANK(Home!$K$21),"",Home!$K$21) -> [Name]
A12: =address_line1 ->  | I12: =altComName -> [Company Name]
A13: =address_line2 ->  | I13: =altAddress_line1 -> [Street Address]
A14: =phone ->  | I14: =altAddress_line2 -> [City, ST ZIP Code]
A15: =fax ->  | I15: =altPhone -> [Phone]
A16: =email ->  | I16: =altContactName -> [Contact Name]
A18: Description | H18: Taxed | I18: Qty | J18: Unit Price | K18: Line Total
A19: Printing materials and parts | H19: x | I19: 5 | J19: 15 | K19: =IF(OR(ISBLANK($I19),$I19=0),0,$I19*$J19) -> 75
A20: Printer serviceing | I20: 1 | J20: 20 | K20: =IF(OR(ISBLANK($I20),$I20=0),0,$I20*$J20) -> 20
K21: 0
K22: 0
K23: 0
K24: 0
K25: 0
K26: 0
K27: 0
K28: 0
K29: 0
K30: 0
K31: 0
K32: 0
K33: 0
K34: 0
K35: 0
K36: 0
A38: Special Notes and Instructions | J38: Subtotal | K38: =IF(ISBLANK($J38),"",Settings!$C$26) -> $ | L38: =SUM($K$19:$K$36) -> 95
A39: =IF(ISBLANK(Home!$F$33),"",Home!$F$33) ->  | J39: ="Discount "&TEXT(_dicount,"0%") -> Discount 10% | K39: =IF(ISBLANK($J39),"",Settings!$C$26) -> $ | L39: =Home!F31*L38 -> 9.5
J40: Taxable | K40: =IF(ISBLANK($J40),"",Settings!$C$26) -> $ | L40: =SUMIF($H$19:$H$36,"x",$K$19:$L$36) -> 75
J41: =Settings!$C$24&" Rate" -> Sales Tax Rate | K41: % | L41: =_taxRate*100 -> 20
J42: =Settings!$C$24 -> Sales Tax | K42: =IF(ISBLANK($J42),"",Settings!$C$26) -> $ | L42: =IF(L40>0,L40*(L41/100),0) -> 15
J43: S&H | K43: =IF(ISBLANK($J43),"",Settings!$C$26) -> $ | L43: =_service_handl -> 0
J44: Total | K44: =IF(ISBLANK($J44),"",Settings!$C$26) -> $ | L44: =IF(L38>0,L38+L42+L43-L39,0) -> 100.5
A46: ="Make all checks payable to "&Settings!C5 -> Make all checks payable to Company Name | H46: =IF(Company_Reg="Yes",Settings!$B$39&": "&Settings!$C$39,"") -> Bank Name: Your Bank Name
A47: Thank you for your business! | H47: =IF(Company_Reg="Yes",Settings!$B$40&Settings!$C$40,"") -> Account #00000000
H48: =IF(Company_Reg="Yes",Settings!$B$41&Settings!$C$41,"") -> Routing/Sort Code #12-34-56
A50: =IF(ISBLANK(Home!$F$6),"","Should you have any enquiries concerning this invoice, please contact "&Home!$F$6&" on "&Settings!$C$17&IF(ISBLANK(INDEX(Sales_Rep,MATCH(Home!$F$6,Sales_Rep_Name,0),6)),"",", ext."&INDEX(Sales_Rep,MATCH(Home!$F$6,Sales_Rep_Name,0),6))) -> 
A51: =Settings!C10&", "&IF(ISBLANK(Settings!C11),"",Settings!C11&", ")&Settings!C12&", "&Settings!C14&", "&Settings!C15&", "&Settings!C13&IF(Company_Reg="Yes",", "&Settings!B34&Settings!$C$34&", "&Settings!B35&Settings!C35,"") -> 111, Street, Town/City, ST, 00000, Country, Company Reg. #123456, Sales Tax ID123456
A52: ="Phone: "&Settings!$C$17&", Fax: "&Settings!$C$18&", E-Mail: "&Settings!$C$19&", Web: "&Settings!$C$20 -> Phone: 0-000-000-0000, Fax: 0-000-000-0000, E-Mail: info@yourcompanysite.com, Web: www.yourcompanysite.com

Sheet Deposit Invoice (hidden)
A8: Your Logo Here | I8: Invoice
K9: Customer is:
A10: =IF(ISBLANK(Settings!C5),"",Settings!C5) -> Company Name | H10: Date: | I10: =IF(ISBLANK(L13),TODAY(),L13) -> 2017-03-26
A11: =IF(ISBLANK(Settings!C6),"",Settings!C6) -> Company Slogan | H11: Invoice #: | I11: 70001 | K11: Customer:
H12: Customer ID: | I12: =IF(ISBLANK($L$11),"",INDEX(Customers,MATCH($L$11,IF($L$9="Company",Company,Person),0),1)) -> 
A13: To: | K13: Enter Invoice Date:
A14: =IF(ISBLANK($L$11),"",INDEX(Customers,MATCH($L$11,IF($L$9="Company",Company,Person),0),IF($L$9="Company",3,2))) -> 
A15: =IF(ISBLANK($L$11),"",INDEX(Customers,MATCH($L$11,IF($L$9="Company",Company,Person),0),4)) -> 
A16: =IF(ISBLANK($L$11),"",INDEX(Customers,MATCH($L$11,IF($L$9="Company",Company,Person),0),5)&", "&INDEX(Customers,MATCH($L$11,IF($L$9="Company",Company,Person),0),6)&", "&INDEX(Customers,MATCH($L$11,IF($L$9="Company",Company,Person),0),7)) ->  | G16: Deposit Received
A17: =IF(ISBLANK($L$11),"","Phone: "&INDEX(Customers,MATCH($L$11,IF($L$9="Company",Company,Person),0),8)) -> 
A18: =IF(ISBLANK($L$11),"","Fax: "&INDEX(Customers,MATCH($L$11,IF($L$9="Company",Company,Person),0),9)) -> 
A19: =IF(ISBLANK($L$11),"","E-Mail: "&INDEX(Customers,MATCH($L$11,IF($L$9="Company",Company,Person),0),10)) ->  | G19: Total Amount Due | I19: =IF(SUM(I26:I51)>0,I57-I16,"") -> 
A22: Salesperson | C22: Job | E22: Payment Terms | H22: Due Date
C23: =IF(ISBLANK($A$23),"",INDEX(Sales_Rep,MATCH($A$23,Sales_Rep_Name,0),2)) ->  | E23: =IF(ISBLANK($L$11),"","Due within "&INDEX(Customers,MATCH($L$11,IF($L$9="Company",Company,Person),0),12)&" days from receipt.") ->  | H23: =IF(ISBLANK($L$11),"",I10+INDEX(Customers,MATCH($L$11,IF($L$9="Company",Company,Person),0),12)) -> 
A25: Qty | B25: Description | H25: Unit Price | I25: Line Total
I26: =IF(SUM(A26)>0,SUM(A26*H26),"") -> 
I27: =IF(SUM(A27)>0,SUM(A27*H27),"") -> 
H52: Subtotal | I52: =IF(SUM(I25:I51)>0,SUM(I25:I51),"") -> 
H53: Tax Rate | I53: =IF(ISBLANK($L$11),"",INDEX(Customers,MATCH($L$11,IF($L$9="Company",Company,Person),0),11)) -> 
A54: =IF(Settings!C30="Yes",Settings!B39,"") -> Bank Name | B54: =IF(Settings!C30="Yes",Settings!C39,"") -> Your Bank Name | D54: =IF(Settings!C30="Yes",Settings!B34,"") -> Company Reg. # | F54: =IF(Settings!C30="Yes",Settings!C34,"") -> 123456 | H54: Tax | I54: =IF(SUM(I25:I51)>0,SUM(I52*I53),"") -> 
A55: =IF(Settings!C30="Yes",Settings!B40,"") -> Account # | B55: =IF(Settings!C30="Yes",Settings!C40,"") -> 00000000 | D55: =IF(Settings!C30="Yes",Settings!B35,"") -> Sales Tax ID | F55: =IF(Settings!C30="Yes",Settings!C35,"") -> 123456
A56: =IF(Settings!C30="Yes",Settings!B41,"") -> Routing/Sort Code # | B56: =IF(Settings!C30="Yes",Settings!C41,"") -> 12-34-56
H57: Total | I57: =IF(SUM(I26:I51)>0,SUM(I52+I54-I55),"") -> 
A59: ="Make all checks payable to "&+A10 -> Make all checks payable to Company Name
A61: Thank you for your business!
A63: =IF(ISBLANK($A$23),"","If you have any questions concerning this invoice, contact "&+A23&" Ext."&INDEX(Sales_Rep,MATCH($A$23,Sales_Rep_Name,0),3)) -> 
A64: =Settings!C10&", "&IF(ISBLANK(Settings!C11),"",Settings!C11&", ")&Settings!C12&", "&Settings!C13&", "&Settings!C14 -> 111, Street, Town/City, Country, ST
A65: ="Phone: "&Settings!C15&", Fax: "&Settings!C18&", E-Mail: "&Settings!C19&", Web Site: "&Settings!C20 -> Phone: 00000, Fax: 0-000-000-0000, E-Mail: info@yourcompanysite.com, Web Site: www.yourcompanysite.com

Sheet template - Service Invoice (hidden)
A1: =_companyName -> Company Name | K1: INVOICE
A2: =_companySlogan -> Company Slogan
H4: Date: | J4: =_invoiceDate -> 2017-03-26
H5: Invoice #: | J5: =_newInvoice -> 1
H6: Customer ID: | J6: =rngCustID -> 
H7: Work Order # | J7: =_purchaseOrder -> 
H8: Payment Due by: | J8: =_invoiceDueDate -> 
A10: Bill To:
A11: =rngCustName -> 
A12: =address_line1 -> 
A13: =address_line2 -> 
A14: =phone -> 
A15: =fax -> 
A16: =email -> 
A18: Description | J18: Line Total
A19: Printing and Binding (160*$1.75/each) | J19: =160*1.75 -> 280
A20: A4 Printing Paper (10*$15.20/5*500 Sheets) | J20: =10*15.2 -> 152
A36: Special Notes and Instructions | I36: Subtotal | J36: =IF(ISBLANK($K36),"",Settings!$C$26) -> $ | K36: =SUM($J$19:$J$34) -> 432
A37: =IF(ISBLANK(Home!$F$33),"",Home!$F$33) ->  | I37: ="Discount "&TEXT(_dicount,"0%") -> Discount 10% | J37: =IF(ISBLANK($K37),"",Settings!$C$26) -> $ | K37: =Home!F31*K36 -> 43.2
I38: =Settings!$C$24&" Rate" -> Sales Tax Rate | J38: % | K38: =_taxRate*100 -> 20
I39: =Settings!$C$24 -> Sales Tax | J39: =IF(ISBLANK($K39),"",Settings!$C$26) -> $ | K39: =IF(K36>0,(K36-rngDiscount)*(K38/100),0) -> 77.76
I40: Total | J40: =IF(ISBLANK($K40),"",Settings!$C$26) -> $ | K40: =SUM($K$36-$K$37,$K$39) -> 466.56
A43: ="Make all checks payable to "&Settings!C5 -> Make all checks payable to Company Name | G43: =IF(Company_Reg="Yes",Settings!$B$39&": "&Settings!$C$39,"") -> Bank Name: Your Bank Name
A44: Thank you for your business! | G44: =IF(Company_Reg="Yes",Settings!$B$40&Settings!$C$40,"") -> Account #00000000
G45: =IF(Company_Reg="Yes",Settings!$B$41&Settings!$C$41,"") -> Routing/Sort Code #12-34-56
A47: =IF(ISBLANK(Home!$F$6),"","Should you have any enquiries concerning this invoice, please contact "&Home!$F$6&" on "&Settings!$C$17&IF(ISBLANK(INDEX(Sales_Rep,MATCH(Home!$F$6,Sales_Rep_Name,0),6)),"",", ext."&INDEX(Sales_Rep,MATCH(Home!$F$6,Sales_Rep_Name,0),6))) -> 
A49: =Settings!C10&", "&IF(ISBLANK(Settings!C11),"",Settings!C11&", ")&Settings!C12&", "&Settings!C14&", "&Settings!C15&", "&Settings!C13&IF(Company_Reg="Yes",", "&Settings!B34&Settings!$C$34&", "&Settings!B35&Settings!C35,"") -> 111, Street, Town/City, ST, 00000, Country, Company Reg. #123456, Sales Tax ID123456
A50: ="Phone: "&Settings!$C$17&", Fax: "&Settings!$C$18&", E-Mail: "&Settings!$C$19&", Web: "&Settings!$C$20 -> Phone: 0-000-000-0000, Fax: 0-000-000-0000, E-Mail: info@yourcompanysite.com, Web: www.yourcompanysite.com

Sheet template - Service Hourly (hidden)
A1: =_companyName -> Company Name | L1: INVOICE
A2: =_companySlogan -> Company Slogan
I4: Date: | K4: =_invoiceDate -> 2017-03-26
I5: Invoice #: | K5: =_newInvoice -> 1
I6: Customer ID: | K6: =rngCustID -> 
I7: Purchase Order # | K7: =_purchaseOrder -> 
I8: Payment Due by: | K8: =_invoiceDueDate -> 
A10: Bill To:
A11: =rngCustName -> 
A12: =address_line1 -> 
A13: =address_line2 -> 
A14: =phone -> 
A15: =fax -> 
A16: =email -> 
A18: Description | I18: Hours | J18: Unit Price | K18: Line Total
A19: Traning Fee | I19: 5.75 | J19: 150 | K19: =IF(OR(ISBLANK($I19),$I19=0),0,$I19*$J19) -> 862.5
K20: =IF(OR(ISBLANK($I20),$I20=0),0,$I20*$J20) -> 0
K21: 0
K22: 0
K23: 0
K24: 0
K25: 0
K26: 0
K27: 0
K28: 0
K29: 0
K30: 0
K31: 0
K32: 0
K33: 0
K34: 0
K35: 0
K36: 0
A38: Special Notes and Instructions | J38: Subtotal | K38: =IF(ISBLANK($J38),"",Settings!$C$26) -> $ | L38: =SUM($K$19:$K$36) -> 862.5
A39: =IF(ISBLANK(Home!$F$33),"",Home!$F$33) ->  | J39: ="Discount "&TEXT(_dicount,"0%") -> Discount 10% | K39: =IF(ISBLANK($J39),"",Settings!$C$26) -> $ | L39: =Home!F31*L38 -> 86.25
J40: =Settings!$C$24&" Rate" -> Sales Tax Rate | K40: % | L40: =_taxRate*100 -> 20
J41: =Settings!$C$24 -> Sales Tax | K41: =IF(ISBLANK($J41),"",Settings!$C$26) -> $ | L41: =IF(L38>0,(L38-rngDiscount)*(L40/100),0) -> 155.25
J42: Total | K42: =IF(ISBLANK($J42),"",Settings!$C$26) -> $ | L42: =SUM($L$38-$L$39,$L$41,$N$41) -> 931.5
A45: ="Make all checks payable to "&Settings!C5 -> Make all checks payable to Company Name | H45: =IF(Company_Reg="Yes",Settings!$B$39&": "&Settings!$C$39,"") -> Bank Name: Your Bank Name
A46: Thank you for your business! | H46: =IF(Company_Reg="Yes",Settings!$B$40&Settings!$C$40,"") -> Account #00000000
H47: =IF(Company_Reg="Yes",Settings!$B$41&Settings!$C$41,"") -> Routing/Sort Code #12-34-56
A49: =IF(ISBLANK(Home!$F$6),"","Should you have any enquiries concerning this invoice, please contact "&Home!$F$6&" on "&Settings!$C$17&IF(ISBLANK(INDEX(Sales_Rep,MATCH(Home!$F$6,Sales_Rep_Name,0),6)),"",", ext."&INDEX(Sales_Rep,MATCH(Home!$F$6,Sales_Rep_Name,0),6))) -> 
A50: =Settings!C10&", "&IF(ISBLANK(Settings!C11),"",Settings!C11&", ")&Settings!C12&", "&Settings!C14&", "&Settings!C15&", "&Settings!C13&IF(Company_Reg="Yes",", "&Settings!B34&Settings!$C$34&", "&Settings!B35&Settings!C35,"") -> 111, Street, Town/City, ST, 00000, Country, Company Reg. #123456, Sales Tax ID123456
A51: ="Phone: "&Settings!$C$17&", Fax: "&Settings!$C$18&", E-Mail: "&Settings!$C$19&", Web: "&Settings!$C$20 -> Phone: 0-000-000-0000, Fax: 0-000-000-0000, E-Mail: info@yourcompanysite.com, Web: www.yourcompanysite.com

Sheet template - Serv. Hourly op. Tax (hidden)
A1: =_companyName -> Company Name | L1: INVOICE
A2: =_companySlogan -> Company Slogan
H4: Date: | K4: =_invoiceDate -> 2017-03-26
H5: Invoice #: | K5: =_newInvoice -> 1
H6: Customer ID: | K6: =rngCustID -> 
H7: Purchase Order # | K7: =_purchaseOrder -> 
H8: Payment Due by: | K8: =_invoiceDueDate -> 
A10: Bill To:
A11: =rngCustName -> 
A12: =address_line1 -> 
A13: =address_line2 -> 
A14: =phone -> 
A15: =fax -> 
A16: =email -> 
A18: Description | H18: Hours | I18: Unit Price | J18: Tax | K18: Line Total
A19: Traning Fee | H19: 15 | I19: 150 | J19: x | K19: =IF(OR(ISBLANK($H19),$H19=0),0,$H19*$I19) -> 2250
A20: Health $ Safety Workshop | H20: 2 | I20: 250 | K20: 500
K21: 0
K22: 0
K23: 0
K24: 0
K25: 0
K26: 0
K27: 0
K28: 0
K29: 0
K30: 0
K31: 0
K32: 0
K33: 0
K34: 0
K35: 0
K36: 0
A38: Special Notes and Instructions | I38: Subtotal | K38: =IF(ISBLANK($I38),"",Settings!$C$26) -> $ | L38: =SUM($K$19:$K$36) -> 2750
A39: =IF(ISBLANK(Home!$F$33),"",Home!$F$33) ->  | I39: ="Discount "&TEXT(_dicount,"0%") -> Discount 10% | K39: =IF(ISBLANK($I39),"",Settings!$C$26) -> $ | L39: =Home!F31*L38 -> 275
I40: Taxable | K40: =IF(ISBLANK($I40),"",Settings!$C$26) -> $ | L40: =SUMIF(J19:J36,"x",K19:K36) -> 2250
I41: =Settings!$C$24&" Rate" -> Sales Tax Rate | K41: % | L41: =_taxRate*100 -> 20
I42: =Settings!$C$24 -> Sales Tax | K42: =IF(ISBLANK($I42),"",Settings!$C$26) -> $ | L42: =IF(L40>0,L40*(L41/100),0) -> 450
I43: Total | K43: =IF(ISBLANK($I43),"",Settings!$C$26) -> $ | L43: =SUM($L$38-$L$39,$L$42) -> 2925
A45: ="Make all checks payable to "&Settings!C5 -> Make all checks payable to Company Name | G45: =IF(Company_Reg="Yes",Settings!$B$39&": "&Settings!$C$39,"") -> Bank Name: Your Bank Name
A46: Thank you for your business! | G46: =IF(Company_Reg="Yes",Settings!$B$40&Settings!$C$40,"") -> Account #00000000
G47: =IF(Company_Reg="Yes",Settings!$B$41&Settings!$C$41,"") -> Routing/Sort Code #12-34-56
A49: =IF(ISBLANK(Home!$F$6),"","Should you have any enquiries concerning this invoice, please contact "&Home!$F$6&" on "&Settings!$C$17&IF(ISBLANK(INDEX(Sales_Rep,MATCH(Home!$F$6,Sales_Rep_Name,0),6)),"",", ext."&INDEX(Sales_Rep,MATCH(Home!$F$6,Sales_Rep_Name,0),6))) -> 
A50: =Settings!C10&", "&IF(ISBLANK(Settings!C11),"",Settings!C11&", ")&Settings!C12&", "&Settings!C14&", "&Settings!C15&", "&Settings!C13&IF(Company_Reg="Yes",", "&Settings!B34&Settings!$C$34&", "&Settings!B35&Settings!C35,"") -> 111, Street, Town/City, ST, 00000, Country, Company Reg. #123456, Sales Tax ID123456
A51: ="Phone: "&Settings!$C$17&", Fax: "&Settings!$C$18&", E-Mail: "&Settings!$C$19&", Web: "&Settings!$C$20 -> Phone: 0-000-000-0000, Fax: 0-000-000-0000, E-Mail: info@yourcompanysite.com, Web: www.yourcompanysite.com

Sheet Price List (hidden)
A1: Price List
A3: Catalog # | B3: Description | C3: Unit Price
A4: A223311 | B4: Product 1 | C4: 5
A5: 11Z2233 | B5: Product 2 | C5: 7
A6: 331122 | B6: Product 3 | C6: 1.85
A7: 332211 | B7: Product 4 | C7: 2.25
A8: 112233 | B8: Product 5 | C8: 9
A9: 113322 | B9: Product 6 | C9: 5.6
A10: 221133 | B10: Product 7 | C10: 5.7
A11: 333333 | B11: Product 8 | C11: 12
A12: 222222 | B12: Product 9 | C12: 22
A13: 111111 | B13: Product 10 | C13: 8
A14: 445566 | B14: Product 11 | C14: 1.25
A15: 554466 | B15: Product 12 | C15: 1.25
A16: 664455 | B16: Product 13 | C16: 3.35
A17: 665544 | B17: Product 14 | C17: 4.5
A18: 446655 | B18: Product 15 | C18: 1.4
A19: 556644 | B19: Product 16 | C19: 1.8
A20: 444444 | B20: Product 17 | C20: 32
A21: 555555 | B21: Product 18 | C21: 35
A22: 225544 | B22: Product 19 | C22: 12
A23: 551133 | B23: Product 20 | C23: 21

Sheet Settings (hidden)
B1: Settings
A3: Company Information
B5: Company Name | C5: Company Name | F5: Enable
B6: Company Slogan (Optional) | C6: Company Slogan | F6: Enable
A8: Company Address
B10: Building/House Number | C10: 111
B11: Street | C11: Street
B12: Town/City | C12: Town/City
B13: County/Province | C13: Country | E13: Optional
B14: State/Province | C14: ST | E14: Optional
B15: ZIP/Postal Code | C15: 00000
B17: Tel. | C17: 0-000-000-0000
B18: Fax | C18: 0-000-000-0000
B19: E-mail | C19: info@yourcompanysite.com
B20: Website | C20: www.yourcompanysite.com
A22: Country Specific Settings
B24: Select Relevant | C24: Sales Tax
B25: =C24&" Rate" -> Sales Tax Rate | C25: 0.2
B26: Currency Symbol | C26: $
A28: Company Registration and Bank Account Information
B30: Display on the invoice | C30: Yes
B32: Company Registration Info
B34: Company Reg. # | C34: 123456
B35: =C24&" ID" -> Sales Tax ID | C35: 123456
B37: Company Bank Account Info
B39: Bank Name | C39: Your Bank Name
B40: Account # | C40: 00000000
B41: Routing/Sort Code # | C41: 12-34-56
A43: Invoice archive directory
B45: Archive Directory Name | C45: My Invoices
A47: Customer ID Settings
B49: Customer ID Format | C49: AA-00000
A51: Payment Terms
B53: Due upon completion | C53: 0
B54: Due upon delivery | C54: 0
B55: Due upon receipt | C55: 0
B56: 15 days | C56: 15 | D56: days from the invoice date
B57: 28 days | C57: 28 | D57: days from the invoice date
B58: 30 days | C58: 30 | D58: days from the invoice date
B59: 60 days | C59: 60 | D59: days from the invoice date
A64: Invoice Status
B66: Invoice Created | C66: Draft
B67: Invoice Sent | C67: In Progress
B68: Invoice Partially Paid | C68: With Balance
B69: Invoice Paid | C69: Paid
B70: Invoice Closed | C70: Closed
A77: Admin Login
B79: Default Password | C79: 1234
A81: Sales Rep. Name | C81: ID | D81: Password | E81: Position | G81: Phone Ext. | H81: Role | I81: =IF(ISERROR(MATCH("Admin", H83:$H183, 0)), FALSE, TRUE) -> FALSE

Sheet HELP (hidden)
A1: Invoice Manager Pro V-1.0.0 - HELP
B3: 1. How to begin using Invoice Manager Pro V-1.0.0 for the first time
B4: 2. General settings, what can I change?
B5: 2.1 | C5: Company Information and Country Specific Settings
B6: 2.2 | C6: Invoice Archive Directory
B7: 2.3 | C7: Customer ID Settings
B8: 2.4 | C8: Payment Terms
B9: 2.5 | C9: Invoice Status
B10: 2.6 | C10: Admin/User Login Credentials
B11: 2.7 | C11: How can I Insert my company logo?
B12: 3. Creating your first invoice
B13: 4. How can I continue using software after the trial period has ended?
B14: 5. How can I add my own invoice template to the software?
A18: 1. How to begin using Invoice Manager Pro V-1.0.0 for the first time
A20: When you download the trial version of Invoice Manager Pro V-1.0.0 and open it for the first time, you will be prompted with warning to inform you, that this spreadsheet uses macros, you will need to click Enable Macros button to be able to use the software.
A22: Once macros is enabled, you should see the simple user form on your screen, that gives you several options and awaits for some action, which we will explain step-by-step here.
A23: The following image shows the screen that you will be presented with, where you can make you choices, such as proceed to purchase license, enter the license key, Later button, to proceed to the trial version of the software or Exit button to exit software entirely, if you do not want to use it at this time. You will also see the message, which informs you of the amount of time you have left for use your trial version. The trial version will let you to fully test drive the software without any limitation for 31 days, beginning from the day when you first open it on your computer.
A25: Click Later button to proceed to the next step in which you will be prompted to create your Administrative User. The administrative privileges differ from regular user privileges, for your own security reasons, so that the only user with administrative privileges can change all settings of the software as well as create regular users or add new invoice templates into the existing software.
A27: At this stage, you will not be asked to create password for your administrative user, once user ID is created, the default password 1234 is automatically assigned to a newly created user, which can be changed at any time and by any user, using his/her default password. It all works in the very usual way, prior to making any changes to the password, user is prompted to enter their existing password first and then make any changes. Users with regular privileges, will not be able to see passwords of any other user, which adds an additional level of security to the software, this is different for user with administrative rights. The information box will appear to inform you that the Admin info has been successfully added, click OK to proceed further.
A28: After clicking OK, you will be taken to the Home tab of the software, where you can see the details of the logged in user. The Home tab is place, from where you can run most of the operations, such as adding new users, adding customers and creating your invoices, but before you begin, you would need to proceed to the Settings tab, to change or update your settings.
A54: 2. General settings, what can I change?
A56: The Settings tab is only available to the user with administrative privileges, this adds additional layer of security and ensures that no other user is going to be able to change any or all of the critical settings including user names or passwords.
A58: 2.1 Company Information and Country Specific Settings
A59: Changing settings that control information displayed on the invoices is actually pretty easy, you can also control what you need to display and what's not. Enter the information in the fields as shown by replacing the current values of the cells with your own. Some cells are optional as indicated and some can be enabled or disabled. Making changes to the country specific settings, helps to customize the invoice templates and the software to your country, meaning that you can have relevant currency symbol, which is displayed across all the invoice templates or change the name of the Sales Tax to VAT (applicable to European Countries) as well as set Sales Tax/VAT rate. The Sales Tax/VAT rate can also be changed on the home page at any time, when creating new invoice.
A83: Displaying company registration, Sales tax ID/VAT and company bank account details on every invoice is legally required by some countries, but for some it is not. If displaying the above mentioned information is required in your country, select Yes, then update information in the rest of the cells with your own information.
A98: 2.2 Invoice Archive Directory
A99: The software will automatically create an archive directory with the name "My Invoices" to store the invoices, which you will be creating. You can specify different name for your archive directory, by replacing the current name with your own. You would need to do this prior to creating invoices or if directory My Invoices has been created already and it contains invoices, you would also have to rename the directory with new name, otherwise the software will create new directory, but all existing invoices will remain inside the old directory, which will result in errors when you try to update the information on your Sales report.
A105: 2.3 Customer ID Settings
A106: The allowed format is two letters, hyphen and five numbers a.e AA-00000, this will give you an option to have plenty of customers in your customers data base. You can change the letters and numbers as you need as long as you are keeping the same format.
A112: 2.4 Payment Terms
A113: We already created some payment terms, but if you need to add more or amend exiting terms, you are able to do so following the same principal. You can assign a default payment terms to every customer in your database, but you can always change the default terms, when creating new invoice to any other then default terms.
A127: 2.5 Invoice Status
A128: The invoice status information can also be changed upon your requirements. Using status helps to indicate the current status of your invoice. As an example, if your invoice is created but not yet sent, the status of your invoice, on the Sales tab, is set to Draft by default. You should change the status to In Progress, once invoice is sent. Same rule will apply, when you receive payments on your invoices, you would need to change the status accordingly.
A143: 2.6 Admin/User Login Credentials
A144: The default password that you need use to access the software for the first time is 1234, which you can change at any time. The same password is automatically assigned to every new user added to the software. Both, user with administrative and regular rights can change their own password, when necessary. User with regular rights are not able to see passwords of any other users, only administrator has this privileges. Also, only administrator can change the user names, when required to do so. Administrator can change the default password to any combination of digits and letters using both upper and lower case letters, with one exception, default password should never be 0000, because Excel will automatically transform to a single 0 and this is simply is not a good practice to have in place.
A158: Phone Extension
A159: Some organizations may use phone extensions appointed to different departments and/or users, therefore, we have also included this in to the software on the new user form as mandatory field. Phone extensions are also displayed at the bottom part of every invoice, when available. Unless of course this is something that you rather not use in your organization, you, as administrative user can always delete any and every phone extension from the form.
A171: 2.7 How can I Insert my company logo?
A173: You can add your own company logo to every invoice template within the software. To do this, you need to have your logo image file. Before inserting your logo, you should remove the logo place holder, which you can view every invoice template. Click on the place holder image and hit Delete button on your keyboard. Once deleted, click on the INSERT tab in the ribbon, then click on the picture icon, in the window that opens, find and select your image then click Insert button at the bottom right corner. You have to repeat the same procedure on every invoice template, where you want your company logo inserted. To change position of the image, simply click on it and drag the image to any place, where it needs to be.
A183: 3. Creating your first invoice
A185: Creating your first invoice isn't hard, but before you begin, you need to create new customer by adding customer details to your database. On the Home tab, click Add New Customer button. In the New Customer Details form that opens, enter the details of your customer and click the Add button. All fields of the form are mandatory. Your customer ID is assigned automatically to every customer, that you add to the list and will be displayed on every invoice. Also, don't forget to assign the default Payment Terms to you new customer, which you can change every time, when you create new invoice.
A237: Once your customers list contains details of at least one customer, you are ready to proceed further to create your first invoice. You can select your customer using two different approaches by selecting a Person or a Company in the drop down menu of the "Customer is" cell. In the next cell, you will be presented with either names of your customers to select from or the names of the companies on your list, all depends upon the selection made in the step above. When customer is selected, the cells containing Billing Address, Customer ID, Payment Terms and the Due Date are automatically updated with information of the customer, that you have selected. You can now change the payment terms from default to any other, available payment terms in the drop down list. Here you can also enter Purchase order number, add service and handling fee, add total purchase discount or even enter the alternative shipping address, when required to do so. Do not worry about deleting the information entered into these cells, it is being deleted automatically, once invoice is created. When customer and invoice information is updated, click on Create New Invoice button. You will be presented with few options to select from, where you can make a simple choice and select the invoice template that you would want to use, then click on the Add button.
A254: If the directory for storing your invoice has not yet been created, the software will prompt you to create the directory. When this has been accomplished, the software will issue the notice, to inform you of the location of the new directory.
A281: When invoice is created, it opens up immediately, so that you can update it with all the rest of the details, such as your products and services and prices for those as usual. When you are ready, save and close your invoice, then go back to your Sales tab, place your cursor in the column Refresh Data right beside the invoice you want to refresh then click on the refresh button that appears within the cell. You will see that the cells that were empty before, will now contain data copied from your newly created invoice. You can follow the same procedure, when you amend any information on any of your invoices, just be sure to refresh the data every time you do so. If payment is overdue, the cell in the column Overdue will inform you of this and will also display the exact number of days by which the payment is overdue. Once your invoice is sent, you must change the status from Draft to In Progress, so that you know that invoice is awaiting payment. You should change status every time you receive full or partial payment accordingly. When invoice is paid and payment was successfully received than you should change the status to closed. Column Total Paid holds information about the amounts paid, when Outstanding Balance column will display the amount that is left to pay by the customer if any.
A286: 4. How can I continue using software after the trial period has ended?
A288: To continue using this software after the trial period is over, you would have to purchase the product key. The product key can be obtained from Spreadsheet123.com, by clicking on the purchase button below, but before you do so, you need to know that this software is licensed only to one computer. After making a purchase, you will download an Excel file (Invoice Manager Pro - Product Code), which will guide you through the process of generating the unique product key for your software.
G290: Email Your User Name to:
G291: support@spreadsheet123.com
A294: 5. How can I add my own invoice template to the software?
C297: HOW TO ADD NEW INVOICE TEMPLATE TO THE EXISTING TOOL
D298: FROM EXCEL | E298: MOVE/COPY INVOICE SHEET TO EXISTING TOOL
D299: FROM OTHER | E299: INSERT NEW SHEET AND COPY CONTENT HERE
D300: After all formulas and name ranges are created, the last step is to re-name the template in this format template - Anyname
C302: *MANDATORY NAME RANGES/INFORMATION TO INSERT TO THE NEW TEMPLATE SHEET
D303: *Name ranges should be sheet specific
D304: For the cell: | E304: Name it as: | F304: Enter Formula: equals to
C305: * | D305: Invoice Date | E305: Sheet1!rngInvoiceDate | F305: _invoiceDate
C306: * | D306: Invoice Number | F306: _newInvoice
C307: * | D307: Customer/Company Name | E307: Sheet1!rngCompanyName | F307: rngCustName
C308: * | D308: Sub Total | E308: Sheet1!rngSubTotal | F308: (sum formula: refer to other templates)
D309: Sales Tax Rate | F309: _taxRate*100
D310: Sales Tax | E310: Sheet1!rngSalesTax | F310: subtotal * (Salestax rate/100)
D311: Service & Handling | E311: Sheet1!rngSH | F311: _service_handl
D312: Discount | E312: Sheet1!rngDiscount | F312: _dicount
C313: * | D313: Total | E313: Sheet1!rngTotal | F313: (sum formula: refer to other templates)
C314: * | D314: Due Date | E314: Sheet1!rngDueDt | F314: _invoiceDueDate
C317: If you select 'YES' for alternate shipping address on Home sheet, Copy paste cells I10:I16 from already built template in the desired cells on the new template. All formulas will be picked up automatically
C319: Main information that is needed on the new template | H319: SIGNING OFF INVOICE For the closing information for the new template, simply copy paste cells (A49,A50,A51) last 3 lines from the already built template. Formulas will be picked up automatically
B320: Information | D320: Formula equals to:
B321: Your Company Name | D321: _companyName
B322: Company Slogan | D322: _companySlogan
B324: Bill To: Information | D324: Formula Equals to | F324: Range Name
B325: Customer/CompanyName | D325: rngCustName | F325: Sheet1!rngCompanyName
B326: Address Line 1 | D326: address_line1
B327: Address Line 2 | D327: address_line2
B328: Phone | D328: phone
B329: Fax | D329: fax
B330: Email | D330: email

Sheet Users (hidden)
A1: Username | B1: Password | C1: Name | D1: Position | E1: Phone Ext. | F1: Role
A2: AlekoB77 | B2: Datuna77 | C2: David | D2: Sales Manager | E2: 1111 | F2: admin | G2: =INDEX(_system_log,MATCH(Home!#REF!,_userName,0),2)=Home!#REF! -> 
A3: NinukaB77 | B3: alekob77 | F3: user

Sheet EULA (hidden)
